bitfinex-derivatives/quotes_ETHF0:USTF0_20250411
["timestamp","ask_amount","ask_price","bid_price","bid_amount"]
[1744351217149,15.5082,1550.4,1550.3,42.10062804]
[1744351217347,1.737,1550.4,1550.3,43.71572804]
[1744351217650,3.2078,1550.5,1550.4,1.29086]
[1744351217848,3.2078,1550.5,1550.4,3.74896]
[1744351218046,4.8484,1550.7,1550.4,2.4581]
[1744351218251,17.7532,1550.7,1550.6,1.2907]
[1744351218450,4.8484,1550.7,1550.6,1.2907]
[1744351219143,3.2078,1550.7,1550.6,10.7307]
[1744351219340,3.2078,1550.7,1550.6,11.5175]
[1744351220250,3.2078,1551.0,1550.9,1.29045]
[1744351220442,0.00967804,1551.1,1551.0,1.29036]
[1744351220838,0.00967804,1551.1,1551.0,2.90836]
[1744351221242,0.00967804,1551.1,1551.0,43.70836]
[1744351221741,0.00967804,1551.1,1551.0,48.20136]
[1744351221952,0.00967804,1551.1,1551.0,53.20136]
[1744351222352,0.00967804,1551.1,1551.0,48.20136]
[1744351222549,1.6108,1551.2,1551.1,1.29028]
[1744351222848,14.5156,1551.2,1551.1,1.29028]
[1744351223145,14.5156,1551.2,1551.1,42.09028]
[1744351223339,19.0136,1551.2,1551.1,40.8]
[1744351223545,17.7234,1551.2,1551.1,40.8]
[1744351224047,24.0136,1551.2,1551.1,40.8]
[1744351224249,19.8565,1551.2,1551.1,40.8]
[1744351224445,18.5663,1551.2,1551.1,42.09028]
[1744351224646,19.8565,1551.2,1551.1,40.8]
[1744351224948,24.8565,1551.2,1551.1,40.8]
[1744351225545,18.5663,1551.2,1551.1,42.09028]
[1744351225747,17.7234,1551.2,1551.1,42.09028]
[1744351226147,3.2078,1551.8,1551.6,1.28982]
[1744351226350,3.2078,1551.8,1551.1,50.292]
[1744351226351,14.19464,1551.7,1551.4,1.28997]
[1744351226550,4.49771,1551.6,1551.5,0.00967804]
[1744351226747,17.40251,1551.6,1551.5,0.00967804]
[1744351226948,23.04731,1551.6,1551.5,0.00967804]
[1744351227452,12.07743,1551.6,1551.1,40.8]
[1744351227653,3.2078,1551.2,1551.1,42.09028]
[1744351229251,3.2078,1551.2,1551.1,42.88499887]
[1744351229448,16.1126,1551.2,1551.1,42.88499887]
[1744351229647,3.2078,1551.2,1551.1,42.09028]
[1744351230549,3.2078,1551.2,1551.1,42.88486628]
[1744351230749,0.00967804,1551.3,1551.2,1.2902]
[1744351230952,0.00967804,1551.3,1551.2,8.4931]
[1744351231153,0.00967804,1551.3,1551.2,9.28768628]
[1744351231750,0.00967804,1551.3,1551.2,14.28768628]
[1744351231946,1.6231,1551.6,1551.5,1.28995]
[1744351232453,1.6231,1551.6,1551.5,2.08453628]
[1744351232955,14.5279,1551.6,1551.5,2.08453628]
[1744351233153,17.7357,1551.6,1551.5,0.79458628]
[1744351233452,17.7357,1551.6,1551.5,2.08453628]
[1744351233854,17.7357,1551.6,1551.5,0.79458628]
[1744351234357,17.7357,1551.6,1551.5,2.08453628]
[1744351234749,17.7357,1551.6,1551.5,0.79458628]
[1744351234949,18.5367,1551.6,1551.5,0.79458628]
[1744351235150,18.5367,1551.6,1551.5,2.08453628]
[1744351235454,18.5367,1551.6,1551.5,0.79458628]
[1744351235956,24.82656,1551.6,1551.5,0.79458628]
[1744351236251,24.82656,1551.6,1551.2,0.79458628]
[1744351236457,3.2078,1551.3,1551.2,3.78228628]
[1744351236655,3.2078,1551.3,1551.2,4.57558628]
[1744351236859,1.6706,1551.4,1551.3,1.29011]
[1744351237157,14.5754,1551.4,1551.3,2.98761]
[1744351237357,14.5754,1551.4,1551.3,3.78219628]
[1744351238054,14.5754,1551.4,1551.3,0.79458628]
[1744351238359,4.49778,1551.5,1551.3,0.79458628]
[1744351238360,3.2078,1551.5,1551.4,1.29003]
[1744351238560,16.1126,1551.5,1551.4,1.29003]
[1744351238759,21.1126,1551.5,1551.3,0.79458628]
[1744351239058,14.19483,1551.4,1551.3,0.79458628]
[1744351239254,1.2902,1551.2,1551.1,40.8]
[1744351239461,1.29028,1551.1,1551.0,0.00967804]
[1744351239655,1.29045,1550.9,1550.8,12.23225989]
[1744351239853,4.49825,1550.9,1550.8,6.65363186]
[1744351240052,8.2078,1550.9,1550.4,19.99073457]
[1744351240366,4.49858,1550.5,1550.4,19.99073457]
[1744351240660,9.23058,1550.5,1550.4,60.79073457]
[1744351240863,14.23058,1550.5,1550.4,60.79073457]
[1744351241060,14.87618001,1550.5,1550.4,60.79073457]
[1744351241270,7.9398,1550.5,1550.4,60.79073457]
[1744351241451,3.2078,1550.5,1550.4,62.52733457]
[1744351243270,4.8156,1550.5,1550.4,62.52733457]
[1744351243455,3.2078,1550.5,1550.4,63.81819457]
[1744351243660,3.2078,1550.5,1550.4,43.82746]
[1744351245368,3.2078,1550.5,1550.4,42.5366]
[1744351245771,3.2078,1550.5,1550.4,43.82746]
[1744351247167,0.00967804,1550.6,1550.5,1.29078]
[1744351247463,0.00967804,1550.6,1550.5,3.71818]
[1744351247668,0.00967804,1550.6,1550.5,4.51461453]
[1744351247970,0.00967804,1550.6,1550.5,44.51818]
[1744351248264,3.21747804,1550.6,1550.5,44.51818]
[1744351249369,3.2078,1550.8,1550.7,1.29061]
[1744351249568,3.2078,1550.8,1550.6,0.79610809]
[1744351249766,3.2078,1550.8,1550.7,1.6069]
[1744351249967,3.2078,1550.8,1550.7,42.4069]
[1744351250170,3.2078,1550.8,1550.7,43.69751]
[1744351251357,3.2078,1551.2,1551.1,1.29023]
[1744351252369,3.2078,1551.4,1551.0,7.15399951]
[1744351252674,3.2078,1551.4,1551.3,1.29011]
[1744351253574,3.2078,1551.4,1551.3,3.81101]
[1744351254965,3.2078,1551.4,1551.3,2.95481]
[1744351255169,4.49783,1551.4,1551.3,1.6647]
[1744351255371,3.2078,1551.4,1551.3,1.6647]
[1744351255572,3.2078,1551.4,1551.3,2.95481]
[1744351255777,3.2078,1551.4,1551.3,1.6647]
[1744351256078,3.2078,1551.4,1551.3,2.95481]
[1744351257574,4.8145,1551.7,1551.6,1.28986]
[1744351257774,3.2078,1551.7,1551.6,1.28986]
[1744351258380,3.2078,1551.7,1551.4,1.5783]
[1744351258572,3.2078,1551.5,1551.4,2.86825]
[1744351259477,3.2078,1551.7,1551.4,4.80336]
[1744351259675,1.93418,1552.2,1552.0,1.28953]
[1744351259977,4.49727,1552.1,1551.9,1.29924804]
[1744351260271,6.10397,1552.1,1552.0,40.8]
[1744351260571,4.8145,1552.1,1552.0,42.08953]
[1744351260879,4.8145,1552.1,1552.0,43.76303]
[1744351261069,4.8145,1552.1,1552.0,42.4735]
[1744351261578,3.2078,1552.1,1552.0,43.76303]
[1744351263272,3.2078,1552.5,1552.4,1.28913]
[1744351263668,1.28928,1552.3,1552.2,1.6162]
[1744351263876,1.28928,1552.3,1552.0,47.58452719]
[1744351263877,1.28945,1552.1,1552.0,41.59252719]
[1744351264071,4.49725,1552.1,1552.0,41.59252719]
[1744351264274,4.49725,1552.1,1552.0,40.8]
[1744351264470,11.07445,1552.1,1552.0,40.8]
[1744351264670,4.785,1552.1,1552.0,40.8]
[1744351264874,3.2078,1552.1,1552.0,40.8]
[1744351265075,3.2078,1552.1,1552.0,42.4162]
[1744351265275,4.49725,1552.1,1552.0,42.4162]
[1744351265577,6.10285,1552.1,1552.0,40.8]
[1744351265777,3.2078,1552.1,1552.0,42.3988]
[1744351265977,3.2078,1552.1,1552.0,43.68833]
[1744351266178,3.2078,1552.1,1552.0,42.3988]
[1744351266573,4.49725,1552.1,1552.0,42.3988]
[1744351266774,3.2078,1552.1,1552.0,42.3988]
[1744351267681,3.2078,1552.3,1552.0,42.3988]
[1744351267882,3.2078,1552.3,1552.2,1.28934]
[1744351268176,5.4118,1552.7,1552.4,1.28916]
[1744351268177,1.28899,1552.7,1552.4,1.28916]
[1744351268382,3.2078,1552.6,1552.5,2.98722]
[1744351268684,3.2078,1552.6,1552.5,1.6981]
[1744351268981,4.49683,1552.6,1552.5,1.6981]
[1744351269687,6.10253,1552.6,1552.5,1.6981]
[1744351270278,4.49683,1552.6,1552.5,1.6981]
[1744351271874,6.10123,1552.6,1552.5,1.6981]
[1744351272776,1.28935,1552.3,1552.1,1.6775]
[1744351272985,4.49715,1552.3,1552.2,1.5822]
[1744351273179,3.2078,1552.3,1552.2,1.5822]
[1744351273379,4.49708,1552.3,1552.2,1.5822]
[1744351273582,3.2078,1552.3,1552.2,1.5822]
[1744351273981,4.49708,1552.3,1552.2,1.5822]
[1744351276689,6.10148,1552.3,1552.2,1.5822]
[1744351276890,4.49708,1552.3,1552.2,1.5822]
[1744351277091,3.2078,1552.3,1552.2,1.5822]
[1744351277291,4.49708,1552.3,1552.2,1.5822]
[1744351278094,3.2078,1552.3,1552.2,1.5822]
[1744351278295,4.49708,1552.3,1552.2,1.5822]
[1744351280886,1.28945,1552.1,1552.0,40.8]
[1744351281092,4.49725,1552.1,1552.0,42.3711]
[1744351281594,4.49725,1552.1,1552.0,40.8]
[1744351281895,9.49725,1552.1,1552.0,40.8]
[1744351282094,4.49725,1552.1,1552.0,40.8]
[1744351282395,4.49725,1552.1,1552.0,42.3711]
[1744351283097,9.49725,1552.1,1552.0,40.8]
[1744351283399,4.49725,1552.1,1552.0,40.8]
[1744351284093,9.49725,1552.1,1552.0,40.8]
[1744351284290,14.26325,1552.1,1552.0,40.8]
[1744351284993,9.26325,1552.1,1552.0,40.8]
[1744351286199,9.26325,1552.1,1552.0,42.4994]
[1744351288202,7.9738,1552.1,1552.0,43.78893]
[1744351288395,7.9738,1552.1,1552.0,43.2866]
[1744351288595,9.26325,1552.1,1552.0,43.2866]
[1744351288901,4.49725,1552.1,1552.0,43.2866]
[1744351289096,3.2078,1552.1,1552.0,44.57613]
[1744351289503,4.49713,1552.3,1552.1,1.28941]
[1744351289806,3.2078,1552.3,1552.2,2.86776]
[1744351290588,4.49708,1552.3,1552.2,1.5784]
[1744351290987,3.2078,1552.3,1552.2,1.5784]
[1744351291302,4.49708,1552.3,1552.2,1.5784]
[1744351292301,3.2078,1552.3,1552.2,1.5784]
[1744351292703,4.49708,1552.3,1552.2,1.5784]
[1744351294111,1.28945,1552.1,1552.0,41.5872]
[1744351294308,3.2078,1552.1,1552.0,44.51103]
[1744351294611,3.2078,1552.1,1552.0,43.2215]
[1744351294809,4.49725,1552.1,1552.0,43.2215]
[1744351295401,3.2078,1552.1,1552.0,43.2215]
[1744351295617,12.9988,1552.1,1551.9,0.00967804]
[1744351295912,1.28978,1551.7,1551.6,1.7372]
[1744351296110,1.28978,1551.7,1551.6,42.5372]
[1744351297010,2.89418,1551.7,1551.6,42.5372]
[1744351297215,1.28978,1551.7,1551.6,42.5372]
[1744351297513,4.50723804,1551.8,1551.6,48.82702]
[1744351297712,4.50723804,1551.8,1551.7,2.5736]
[1744351297914,4.50723804,1551.8,1551.7,1.7372]
[1744351298412,1.28978,1551.7,1551.6,40.8]
[1744351298607,3.22468,1551.6,1550.9,19.99073457]
[1744351298814,1.29031,1551.1,1550.9,21.63883457]
[1744351299015,1.29032,1551.1,1551.0,40.8]
[1744351299316,9.28904,1551.2,1551.0,40.8]
[1744351299522,3.2078,1551.2,1551.0,40.8]
[1744351299707,4.49807,1551.2,1551.0,40.8]
[1744351299907,4.498,1551.2,1551.1,1.6285]
[1744351300414,3.2078,1551.2,1551.1,2.91878]
[1744351300609,3.2078,1551.6,1551.1,17.4125]
[1744351300809,3.2078,1551.6,1551.2,1.6285]
[1744351301010,3.2078,1551.6,1551.3,0.845]
[1744351301209,1.28995,1551.5,1551.4,42.4285]
[1744351301418,4.49775,1551.5,1551.4,40.8]
[1744351301718,0.6448,1551.6,1551.4,42.09003]
[1744351302110,4.49761,1551.7,1551.4,42.09003]
[1744351302519,1.28988,1551.6,1551.4,40.8]
[1744351303517,4.49764,1551.7,1551.4,42.09002]
[1744351304020,1.28987,1551.6,1551.4,42.09002]
[1744351304213,4.49762,1551.7,1551.4,42.09002]
[1744351304415,1.28987,1551.6,1551.4,40.8]
[1744351304614,4.49764,1551.7,1551.4,42.09001]
[1744351305620,3.2078,1551.7,1551.5,1.28993]
[1744351305917,1.28995,1551.5,1551.4,40.8]
[1744351306107,3.2078,1551.7,1551.4,40.8]
[1744351306920,4.49758,1551.7,1551.5,1.2899]
[1744351308019,4.49758,1551.7,1551.4,42.08998]
[1744351308216,1.28987,1551.6,1551.4,42.08998]
[1744351308418,3.2078,1551.7,1551.4,40.8]
[1744351308619,4.49775,1551.5,1551.4,40.8]
[1744351309823,1.28995,1551.5,1551.4,40.8]
[1744351310424,3.2078,1551.5,1551.4,40.8]
[1744351310717,15.75619993,1551.7,1551.5,1.2899]
[1744351310923,15.75619993,1551.7,1551.4,42.08997]
[1744351311119,4.49775,1551.5,1551.4,40.8]
[1744351311720,20.54819993,1551.7,1551.4,40.8]
[1744351311920,4.49775,1551.5,1551.4,40.8]
[1744351312119,3.2078,1551.5,1551.4,42.09003]
[1744351312317,17.04602993,1551.7,1551.5,1.28991]
[1744351312519,1.28987,1551.6,1551.4,40.8]
[1744351312719,17.04602993,1551.7,1551.4,40.8]
[1744351312926,1.28987,1551.6,1551.4,42.08997]
[1744351313827,3.2078,1551.5,1551.4,42.09003]
[1744351314019,1.28991,1551.6,1551.4,42.09003]
[1744351314323,15.75619993,1551.7,1551.4,42.09002]
[1744351314523,3.2078,1551.5,1551.4,40.8]
[1744351314728,3.2078,1551.5,1551.4,42.09003]
[1744351315027,17.04598993,1551.7,1551.5,1.28989]
[1744351315715,17.04598993,1551.7,1551.6,1.7163]
[1744351316122,18.65358993,1551.7,1551.6,1.7163]
[1744351316730,1.28995,1551.5,1551.4,40.8]
[1744351316928,3.2078,1551.5,1551.4,40.8]
[1744351317226,3.2078,1551.5,1551.4,42.09003]
[1744351317735,17.04603993,1551.7,1551.4,42.09003]
[1744351317933,17.04603993,1551.7,1551.5,1.6605]
[1744351318229,1.28986,1551.6,1551.5,1.6605]
[1744351318526,12.54839993,1551.7,1551.6,1.28986]
[1744351318724,12.54839993,1551.7,1551.6,2.88862586]
[1744351318925,12.54839993,1551.7,1551.6,4.54912586]
[1744351320532,12.54839993,1551.7,1551.6,9.54912586]
[1744351320719,5.02903801,1551.8,1551.7,1.28978]
[1744351320923,2.42093801,1551.8,1551.7,4.53484586]
[1744351321121,2.42093801,1551.8,1551.7,12.74264586]
[1744351321322,2.42093801,1551.8,1551.7,18.73464586]
[1744351321830,2.42093801,1551.8,1551.7,23.67264586]
[1744351323129,0.00967804,1551.9,1551.8,1.2897]
[1744351323329,0.00967804,1551.9,1551.8,7.2817]
[1744351323533,10.73683996,1552.3,1552.2,1.28936]
[1744351323534,7.52903996,1552.3,1552.2,1.28936]
[1744351324023,7.52903996,1552.3,1552.2,47.86252586]
[1744351324230,7.52903996,1552.3,1552.2,42.86252586]
[1744351324622,7.52903996,1552.3,1552.2,45.23652586]
[1744351324824,7.52903996,1552.3,1552.2,44.46336]
[1744351326033,4.51428996,1552.3,1552.2,58.66316]
[1744351326230,1.85608997,1552.8,1552.6,1.28899]
[1744351326429,5.06388997,1552.8,1552.6,1.28897]
[1744351326729,5.06388997,1552.8,1552.7,1.6489]
[1744351327123,6.78228997,1552.8,1552.7,1.6489]
[1744351328732,8.07115997,1552.8,1552.7,1.6489]
[1744351328933,6.78228997,1552.8,1552.5,0.00967804]
[1744351329134,1.7184,1552.7,1552.5,0.00967804]
[1744351329330,3.00739,1552.7,1552.5,1.71247804]
[1744351329632,3.2078,1552.8,1552.5,1.71247804]
[1744351329823,6.06151,1552.8,1552.5,1.71247804]
[1744351330028,4.7726,1552.8,1552.6,1.28902]
[1744351330324,4.7726,1552.8,1552.7,1.7028]
[1744351330536,6.06147,1552.8,1552.7,1.7028]
[1744351331134,1.28895,1552.7,1552.6,0.8049]
[1744351331332,2.85375,1552.7,1552.6,2.5077]
[1744351331635,1.28903,1552.6,1552.5,0.00967804]
[1744351331933,1.5648,1552.6,1552.5,1.29879804]
[1744351332134,1.289,1552.7,1552.5,0.00967804]
[1744351332437,1.6211,1552.7,1552.5,1.29875804]
[1744351332736,4.49683,1552.6,1552.5,0.00967804]
[1744351332938,3.2078,1552.6,1552.5,0.00967804]
[1744351333240,3.2078,1552.6,1552.5,1.61417804]
[1744351333738,4.49683,1552.6,1552.5,1.61417804]
[1744351334333,3.2078,1552.6,1552.5,2.90329804]
[1744351334541,4.49683,1552.6,1552.5,1.61417804]
[1744351334737,6.11793,1552.6,1552.5,1.61417804]
[1744351335138,11.11793,1552.6,1552.5,0.00967804]
[1744351335438,16.05393,1552.6,1552.5,0.00967804]
[1744351335638,1.28928,1552.3,1552.2,40.8]
[1744351335837,4.49708,1552.3,1552.2,40.8]
[1744351336038,14.43308,1552.3,1552.2,40.8]
[1744351336231,9.43308,1552.3,1552.2,40.8]
[1744351336938,14.43308,1552.3,1552.2,40.8]
[1744351337540,1.28936,1552.2,1552.1,0.00967804]
[1744351337840,3.00056,1552.2,1552.1,0.00967804]
[1744351338033,6.7112,1552.2,1551.5,1.6285]
[1744351338229,3.2078,1551.7,1551.6,1.28986]
[1744351338441,8.1438,1551.9,1551.6,42.4346]
[1744351338633,9.43347,1551.9,1551.6,43.72444]
[1744351338830,1.28978,1551.7,1551.6,40.8]
[1744351339035,4.49758,1551.7,1551.6,40.8]
[1744351340040,11.45908,1551.7,1551.6,40.8]
[1744351340438,6.45908,1551.7,1551.6,40.8]
[1744351341243,11.45908,1551.7,1551.6,40.8]
[1744351341643,6.45908,1551.7,1551.6,40.8]
[1744351342339,11.45908,1551.7,1551.6,40.8]
[1744351343040,1.28986,1551.6,1551.5,0.00967804]
[1744351343244,7.88136,1551.6,1551.5,0.00967804]
[1744351343446,12.88136,1551.6,1551.5,0.00967804]
[1744351343746,1.29047,1550.9,1550.6,21.01547093]
[1744351343945,3.2078,1550.9,1550.7,42.5128]
[1744351344144,4.49827,1550.9,1550.7,42.5128]
[1744351344648,4.49827,1550.9,1550.7,43.8034]
[1744351344844,2.97193,1550.8,1550.7,42.5128]
[1744351345143,2.97193,1550.8,1550.7,40.8]
[1744351345349,4.00973,1550.8,1550.7,40.8]
[1744351345645,0.00967804,1551.0,1550.9,1.29045]
[1744351345845,0.00967804,1551.0,1550.8,2.32668]
[1744351346046,3.21747804,1551.0,1550.9,1.7188]
[1744351346242,3.21747804,1551.0,1550.9,42.5188]
[1744351346640,0.00967804,1551.0,1550.9,43.80925]
[1744351346837,0.00967804,1551.0,1550.9,48.80925]
[1744351348249,2.97151,1551.3,1550.9,48.80925]
[1744351348250,4.49783,1551.4,1551.2,1.29014]
[1744351348452,6.16523,1551.4,1551.3,1.6789]
[1744351348949,4.1677,1551.6,1551.3,1.6789]
[1744351349153,1.28997,1551.5,1551.3,2.96897]
[1744351349344,5.8351,1551.6,1551.4,1.6789]
[1744351349545,7.13469804,1551.6,1551.5,40.8]
[1744351349953,4.88487804,1551.6,1551.5,40.8]
[1744351350453,4.88487804,1551.6,1551.5,42.4789]
[1744351351447,0.00967804,1551.6,1551.5,43.76885]
[1744351351652,0.00967804,1551.6,1551.5,44.74645]
[1744351352051,0.00967804,1551.6,1551.5,43.4565]
[1744351352254,4.50733804,1551.6,1551.5,42.4789]
[1744351352756,3.21747804,1551.6,1551.5,42.4789]
[1744351353157,6.13193804,1551.6,1551.5,42.4789]
[1744351354245,4.84207804,1551.6,1551.5,42.4789]
[1744351354451,6.13193804,1551.6,1551.5,40.8]
[1744351355749,6.13193804,1551.6,1551.5,42.5346]
[1744351355956,6.13193804,1551.6,1551.5,40.8]
[1744351356254,11.11693804,1551.6,1551.5,40.8]
[1744351357262,16.11693804,1551.6,1551.5,40.8]
[1744351358362,1.28995,1551.5,1551.4,0.00967804]
[1744351358554,4.96925,1551.5,1551.4,0.00967804]
[1744351358750,9.96925,1551.5,1551.4,0.00967804]
[1744351358951,1.2902,1551.2,1551.1,40.8]
[1744351359161,9.483,1551.2,1551.1,40.8]
[1744351359363,14.483,1551.2,1551.1,40.8]
[1744351359865,1.29053,1550.8,1550.7,3.6462]
[1744351360065,4.49833,1550.8,1550.7,3.6462]
[1744351360366,1.29063,1550.7,1550.6,0.00967804]
[1744351360657,2.98693,1550.7,1550.6,0.00967804]
[1744351360858,2.98693,1550.7,1550.6,40.80967804]
[1744351361765,8.63253001,1550.7,1550.6,40.80967804]
[1744351361964,10.62233001,1550.7,1550.6,40.80967804]
[1744351362161,10.62233001,1550.7,1550.6,0.00967804]
[1744351362461,3.21747804,1550.8,1550.6,0.00967804]
[1744351362657,3.21747804,1550.8,1550.6,42.10031804]
[1744351362954,3.21747804,1550.8,1550.7,2.6617]
[1744351363355,4.50800804,1550.8,1550.7,2.6617]
[1744351363860,6.13570804,1550.8,1550.7,1.711]
[1744351364263,1.29061,1550.7,1550.6,40.80967804]
[1744351364870,1.29061,1550.7,1550.6,41.75787804]
[1744351365261,4.50806804,1550.8,1550.6,41.75787804]
[1744351365561,4.50806804,1550.8,1550.7,1.711]
[1744351366470,1.29061,1550.7,1550.6,40.80967804]
[1744351366667,1.29061,1550.7,1550.6,42.53337804]
[1744351367174,4.50802804,1550.8,1550.6,43.82404804]
[1744351367361,3.21747804,1550.8,1550.7,1.7237]
[1744351367763,3.21747804,1550.8,1550.7,3.01431]
[1744351368372,3.21747804,1550.8,1550.7,1.7237]
[1744351370675,1.29061,1550.7,1550.6,40.80967804]
[1744351370874,2.94751,1550.7,1550.6,42.45787804]
[1744351371072,0.00967804,1550.8,1550.7,1.29061]
[1744351371373,0.00967804,1550.8,1550.7,2.93881]
[1744351371569,0.00967804,1550.8,1550.7,7.93881]
[1744351372465,3.2078,1551.2,1550.7,7.93881]
[1744351372671,3.2078,1551.2,1551.1,1.29028]
[1744351373779,4.498,1551.2,1551.0,1.29034]
[1744351373971,4.498,1551.2,1551.1,1.6728]
[1744351374164,3.2078,1551.2,1551.1,2.7163]
[1744351374675,3.2078,1551.2,1551.1,4.00658]
[1744351375080,3.2078,1551.2,1551.1,2.7163]
[1744351375978,3.2078,1551.2,1551.1,4.00658]
[1744351376370,0.00967804,1551.3,1551.2,1.2902]
[1744351376576,0.00967804,1551.3,1551.2,2.993]
[1744351377973,0.00967804,1551.3,1551.2,7.993]
[1744351378172,0.00967804,1551.3,1551.2,2.993]
[1744351378373,0.00967804,1551.3,1551.2,7.993]
[1744351379172,0.00967804,1551.3,1551.2,2.993]
[1744351380171,0.00967804,1551.3,1551.2,7.912]
[1744351380371,0.00967804,1551.3,1551.2,12.912]
[1744351380775,0.00967804,1551.3,1551.2,18.904]
[1744351380972,3.2078,1551.6,1551.5,1.28995]
[1744351381281,3.2078,1551.6,1551.5,40.8]
[1744351381478,3.2078,1551.6,1551.5,42.08995]
[1744351381677,3.2078,1551.6,1551.5,43.73395]
[1744351382780,4.49766,1551.6,1551.5,42.444]
[1744351382981,6.11976,1551.6,1551.5,42.444]
[1744351383175,11.11976,1551.6,1551.5,42.444]
[1744351383379,11.11976,1551.6,1551.5,40.8]
[1744351383781,4.8299,1551.6,1551.5,42.444]
[1744351384078,4.8299,1551.6,1551.5,43.73395]
[1744351384279,3.2078,1551.6,1551.5,43.73395]
[1744351384483,3.2078,1551.6,1551.5,45.84815]
[1744351384683,0.00967804,1551.7,1551.6,1.28986]
[1744351384873,0.00967804,1551.7,1551.6,2.89566]
[1744351385070,10.05750873,1551.9,1551.8,1.2897]
[1744351385572,10.05750873,1551.9,1551.8,1.0505]
[1744351385573,13.26530873,1551.9,1551.8,1.0505]
[1744351385779,14.55499873,1551.9,1551.7,2.89555]
[1744351386284,13.26530873,1551.9,1551.8,2.8955]
[1744351386484,10.05750873,1551.9,1551.8,2.8955]
[1744351387785,3.2078,1552.1,1552.0,1.28953]
[1744351388085,4.49725,1552.1,1551.9,5.02155]
[1744351388390,1.28953,1552.0,1551.9,1.0963]
[1744351388577,1.28963,1551.9,1551.7,3.97121]
[1744351388878,4.49743,1551.9,1551.8,1.5852]
[1744351389180,3.2078,1551.9,1551.8,1.5852]
[1744351389386,3.2078,1551.9,1551.8,2.8749]
[1744351391090,6.16981,1552.1,1551.9,1.28961]
[1744351391387,1.28953,1552.0,1551.9,1.7228]
[1744351391586,2.96203,1552.0,1551.9,1.7228]
[1744351391791,2.96209,1552.0,1551.8,1.2897]
[1744351391983,2.96209,1552.0,1551.8,3.0125]
[1744351392183,4.49741,1551.9,1551.8,1.7228]
[1744351392485,6.16991,1551.9,1551.7,2.38602]
[1744351392684,1.6725,1551.8,1551.7,4.10882]
[1744351393084,1.28978,1551.7,1551.6,1.0963]
[1744351393282,3.2078,1552.1,1551.6,2.7378]
[1744351393588,3.2078,1551.9,1551.8,1.28966]
[1744351393781,4.49741,1551.9,1551.8,1.6415]
[1744351394489,6.08301,1551.9,1551.8,1.6415]
[1744351394787,1.28978,1551.7,1551.5,42.08992]
[1744351394989,1.28978,1551.7,1551.5,43.73142]
[1744351395189,1.28978,1551.7,1551.5,42.4415]
[1744351395391,2.87538,1551.7,1551.5,43.73143]
[1744351395592,2.87546,1551.7,1551.5,42.4415]
[1744351395889,2.87546,1551.7,1551.5,43.73143]
[1744351396286,1.28986,1551.6,1551.5,42.4415]
[1744351396592,1.6175,1551.6,1551.5,43.73145]
[1744351396982,2.90736,1551.6,1551.5,42.4415]
[1744351397183,1.6175,1551.6,1551.5,43.73145]
[1744351397591,2.90736,1551.6,1551.5,42.4415]
[1744351398196,2.90736,1551.6,1551.5,40.8]
[1744351398689,4.49764,1551.7,1551.5,40.8]
[1744351398889,6.11514,1551.7,1551.5,42.4074]
[1744351399193,1.28986,1551.6,1551.5,42.4074]
[1744351399389,2.87726,1551.6,1551.5,42.4074]
[1744351399995,3.2078,1551.7,1551.5,43.69735]
[1744351400189,1.5874,1551.9,1551.6,1.6248]
[1744351400389,2.87701,1551.9,1551.7,1.28975]
[1744351400590,2.87701,1551.9,1551.8,1.6248]
[1744351400882,6.08481,1551.9,1551.8,1.6248]
[1744351402895,1.28977,1551.8,1551.5,47.00588]
[1744351403188,2.96167,1551.8,1551.6,2.96826]
[1744351403591,2.96167,1551.8,1551.7,1.6784]
[1744351403789,1.6719,1551.8,1551.5,41.6392]
[1744351403992,1.28986,1551.6,1551.5,41.6392]
[1744351404386,2.96176,1551.6,1551.5,43.3176]
[1744351406202,3.2078,1551.7,1551.5,43.3176]
[1744351406390,1.28978,1551.7,1551.6,1.6688]
[1744351408298,4.0496,1551.8,1551.5,42.92915]
[1744351408499,1.28984,1551.7,1551.5,44.65885]
[1744351408802,1.28984,1551.7,1551.6,1.7297]
[1744351409903,2.13155,1551.8,1551.6,1.7297]
[1744351410118,5.55428,1552.0,1551.8,1.28968]
[1744351410416,7.56315125,1552.1,1552.0,1.28953]
[1744351410913,12.57188591,1552.3,1552.2,1.28936]
[1744351411217,8.74488591,1552.3,1552.2,7.28136]
[1744351411418,8.74488591,1552.3,1552.2,48.08136]
[1744351411819,8.74488591,1552.3,1552.2,53.08136]
[1744351412418,10.07440235,1552.4,1552.3,1.28928]
[1744351412916,10.07440235,1552.4,1552.3,6.28928]
[1744351413111,10.07440235,1552.4,1552.3,1.28928]
[1744351413311,10.07440235,1552.4,1552.2,48.09101804]
[1744351413614,3.2078,1552.3,1552.2,40.80967804]
[1744351413816,1.28928,1552.3,1552.2,40.80967804]
[1744351414010,13.04936235,1552.4,1552.2,40.80967804]
[1744351414319,4.869,1552.3,1552.2,40.80967804]
[1744351414523,6.15828,1552.3,1552.2,40.80967804]
[1744351414721,4.869,1552.3,1552.2,40.80967804]
[1744351415222,13.04936235,1552.4,1552.2,40.80967804]
[1744351415623,13.04936235,1552.4,1552.2,42.09902804]
[1744351415820,13.04936235,1552.4,1552.2,40.80967804]
[1744351416022,13.04934235,1552.4,1552.2,40.80967804]
[1744351416823,13.04933235,1552.4,1552.2,40.80967804]
[1744351417025,1.28928,1552.3,1552.2,40.80967804]
[1744351417321,4.49708,1552.3,1552.2,40.80967804]
[1744351417721,3.2078,1552.3,1552.2,40.80967804]
[1744351418122,4.49708,1552.3,1552.2,40.80967804]
[1744351418318,14.36508,1552.3,1552.2,40.80967804]
[1744351418517,1.28966,1551.9,1551.7,2.4703]